Cogmind - Beta 16 @@@ ROGUE MODE // 2025.12.21 @ 21:16:15 Player: Oneirical Result: Destroyed by Piercing Trap Performance ------------- Evolutions (0) 0 Regions Visited (2) 400 Robots Destroyed (24) 120 Value Destroyed (573) 573 Prototype IDs (0) 0 Alien Tech Used (0) 0 Bonus (0) 0 TOTAL SCORE: 1093 Bonus ------- None Cogmind --------- Core Integrity 0/250 Matter 222/300 Energy 98/100 System Corruption 0% Temperature Cool (0) Movement Rolling (105) Ox1 Location -10/Subcaves Parts ------- > --- POWER (1) -------- Subdweller Power Source > --- PROPULSION (2) --- Armored Wheel Armored Wheel > --- UTILITY (2) ------ Medium Storage Unit Seismic Detector > --- WEAPON (2) ------- Barrage Gun Slug Cannon > --- INVENTORY (10) --- Armored Wheel Armored Wheel Medium Armor Plating Makeshift Light Armor Plating Barrage Gun Mini Grenade Launcher Subdweller Shrapnel Launcher Mining Laser Makeshift Sword Peak State ------------ > --- POWER ------------ Subdweller Power Source > --- PROPULSION ------- Armored Wheel Armored Wheel > --- UTILITY ---------- Medium Storage Unit Seismic Detector > --- WEAPON ----------- Barrage Gun Slug Cannon > --- INVENTORY -------- Armored Wheel Armored Wheel Medium Armor Plating Makeshift Light Armor Plating Shotgun Mini Grenade Launcher Subdweller Shrapnel Launcher Mining Laser Makeshift Sword [Rating: 17] Favorites ----------- Power Subdweller Power Source Engine Subdweller Power Source Propulsion Armored Wheel Treads Light Treads Wheel Armored Wheel Utility Seismic Detector Device Seismic Detector Storage Medium Storage Unit Weapon Barrage Gun Energy Gun Small Laser Ballistic Gun Barrage Gun Ballistic Cannon Slug Cannon Special Weapon Mining Laser Build | -11 -10 -10 ------- Run | Yrd Mat Sub Slots Evolved . | . . . Power . | . . . Propulsion . | . . . Utility . | . . . Weapon . | . . . Parts Attached 20 | 8 7 5 Power 2 | 1 . 1 Engine 2 | 1 . 1 Core . | . . . Reactor . | . . . Propulsion 5 | 2 2 1 Treads 2 | 2 . . Leg . | . . . Wheel 3 | . 2 1 Hover . | . . . Flight . | . . . Utility 3 | 2 1 . Device 1 | 1 . . Storage 2 | 1 1 . Processor . | . . . Hackware . | . . . Protection . | . . . Artifact . | . . . Weapon 10 | 3 4 3 Energy Gun 2 | 2 . . Energy Cannon . | . . . Ballistic Gun 5 | 1 2 2 Ballistic Cannon 2 | . 1 1 Launcher . | . . . Special Weapon 1 | . 1 . Impact Weapon . | . . . Slashing Weapon . | . . . Piercing Weapon . | . . . Special Melee Weapon . | . . . Unidentified Prototypes . | . . . Parts Lost . | . . . Power . | . . . Propulsion . | . . . Utility . | . . . Weapon . | . . . Highest Loss Streak . | . . . To Critical Strikes . | . . . Average Backups 7 | . 6 9 Power . | . . . Propulsion 1 | . 1 2 Utility 1 | . 1 1 Weapon 4 | . 3 5 Tool/Special . | . . . Unused Backups 11 | . 2 9 Power . | . . . Propulsion 2 | . . 2 Utility 3 | . 1 2 Weapon 6 | . 1 5 Tool/Special . | . . . Average Slot Usage (%) 100 | . 100 100 Engine 14 | . 14 14 Treads 1 | . 3 . Wheel 26 | . 24 28 Device 14 | . 14 14 Storage 14 | . 14 14 Energy Gun 1 | . 4 . Ballistic Gun 21 | . 19 22 Ballistic Cannon 4 | . 3 5 Peak Build Rating 17 | 7 12 17 Average Rating 12 | 5 10 15 On Entrance 6 | . 7 12 Avg Prop Armor Cover (%) . | . . . Naked Turns . | . . . Heaviest Build 26 | 14 22 26 Greatest Support 40 | 40 40 32 Greatest Overweight (x) 1 | . 1 1 Average Overweight (x) . | . . . Largest Inventory Capacity 10 | 8 10 10 Average Capacity 9 | 7 8 10 Most Carried 10 | 2 8 10 Average Carried 7 | . 7 9 Final Capacity 10 | 8 10 10 Final Carried 9 | 2 8 9 Class Distribution -------------------- 100% | Mutant Dominant Class ---------------- Mutant | -10/Materials Mutant | -10/Subcaves Resources | -11 -10 -10 ----------- Run | Yrd Mat Sub Matter Collected 964 | 325 343 296 Remotely . | . . . Salvage Created 839 | 166 502 171 Parts 59 | 13 33 13 Haulers Intercepted . | . . . Recyclers Shooed . | . . . Parts Field Recycled . | . . . Retrieved Matter . | . . . Parts Self-Destructed 3 | . . 3 Prevented . | . . . Parts Restored . | . . . Kills | -11 -10 -10 ------- Run | Yrd Mat Sub Combat Hostiles Destroyed 18 | . 15 3 Guns 17 | . 14 3 Cannons 1 | . 1 . Classes Destroyed 8 | 2 3 3 Builder 1 | . 1 . Tunneler 4 | 4 . . Recycler 1 | 1 . . Swarmer 4 | . 4 . Grunt 11 | . 11 . Artisan 1 | . . 1 Cobbler 1 | . . 1 Subdweller 3 | . . 3 Best Kill Streak 5 | 2 5 1 Combat Bots Only 4 | . 4 1 Max Kills in Single Turn 2 | 1 2 1 Gunslinging . | . . . Exploded . | . . . Melee . | . . . Uniques/NPCs Destroyed . | . . . Combat | -11 -10 -10 -------- Run | Yrd Mat Sub Hostile Shots Fired 71 | . 56 15 Missed 14 | . 13 1 Hits 57 | . 43 14 Projectile 57 | . 43 14 Damage Taken 812 | . 453 359 Core 266 | . 104 162 Absorbed by Shields . | . . . Regen/Repaired (Parts) 26 | . 26 . Core Remaining (%) 100 | 100 . . Volleys Fired 93 | 16 39 38 Largest 2 | 2 2 2 Hottest 100 | 60 100 100 Shots Fired 176 | 29 77 70 Gun 156 | 29 67 60 Cannon 13 | . 9 4 Launcher . | . . . Special 7 | . 1 6 Kinetic 147 | 16 67 64 Thermal 26 | 10 10 6 Explosive . | . . . Electromagnetic 3 | 3 . . Robot Hit Streak 13 | 5 13 9 Robot Miss Streak 5 | 4 5 3 Penetration Max . | . . . Secondary Targets 1 | . 1 . Max Gunslinging Chain 1 | . 1 . Shots Hit Robots 103 | 12 50 41 Core Hits 45 | 6 27 12 Critical Kills . | . . . Critical Parts Destroyed 1 | . 1 . Critical Strikes 1 | . 1 . Destroy 1 | . 1 . Melee Attacks . | . . . Impact . | . . . Slashing . | . . . Piercing . | . . . Sneak Attacks . | . . . Combat Hostiles . | . . . Follow-up Attacks . | . . . Damage Inflicted 1532 | 142 730 660 Guns 1457 | 142 655 660 Cannons 75 | . 75 . Explosions . | . . . Melee . | . . . Ramming . | . . . Kinetic 1381 | 49 672 660 Thermal 136 | 78 58 . Explosive . | . . . Electromagnetic 15 | 15 . . Impact . | . . . Slashing . | . . . Piercing . | . . . Highest Corruption . | . . . Average Corruption . | . . . Corruption Purged . | . . . Corruption Blocked . | . . . Overload Shots . | . . . Overflow Damage . | . . . Projectiles . | . . . Explosions . | . . . Melee . | . . . Knockbacks 1 | . 1 . Impact . | . . . Kinetic 1 | . 1 . Secondary . | . . . Self-Inflicted Damage . | . . . Shots . | . . . Rammed . | . . . Targets Rammed . | . . . Kicked . | . . . Crushed . | . . . Highest Temperature 24 | . 24 . Average Temperature 8 | . 8 . Received Heat Transfer 258 | . 204 54 Siege Activations . | . . . Martial Activations . | . . . Shielding Activations . | . . . Robots Disrupted . | . . . Combat Hostiles . | . . . Robots Corrupted . | . . . Combat Hostiles . | . . . Parts Fried . | . . . Impact Corruptions . | . . . Robots Melted . | . . . Combat Hostiles . | . . . Parts Melted . | . . . Heat Transferred 300 | 175 125 . Parts Sabotaged . | . . . Parts Stolen . | . . . Parts Stripped . | . . . Power Chain Reactions . | . . . Alert | -11 -10 -10 ------- Run | Yrd Mat Sub Maximum Alert Level . | . . . Low Security (%) 100 | 100 100 . Level 1 . | . . . Level 2 . | . . . Level 3 . | . . . Level 4 . | . . . Level 5 . | . . . High Security . | . . . Max Security . | . . . Peak Influence 194 | 5 194 . Initial . | . . . Average 43 | . 61 . Influence Increases 421 | 25 381 15 Destroy 0b10 Robot/C 300 | . 300 . Destroy 0b10 Robot/NC 30 | 25 5 . Destroy Leader 50 | . 50 . Successful Hack 9 | . 9 . Destroy Structure 2 | . 2 . Lose Combat Pursuer 30 | . 15 15 Influence Decreases 421 | 25 211 185 Entered New Map 82 | . . 82 Time Decay 339 | 25 211 103 Squads Dispatched 5 | . 5 . Investigation 3 | . 3 . Extermination . | . . . Reinforcement 2 | . 2 . Assault . | . . . Garrison . | . . . Intercept . | . . . Searches Triggered . | . . . Construction Impeded . | . . . Haulers Reinforced . | . . . Active Scanning Responses . | . . . Cargo Convoy Interrupts . | . . . Stealth | -11 -10 -10 --------- Run | Yrd Mat Sub Distress Signals 1 | . 1 . Communications Jammed . | . . . Distress Signals . | . . . Times Spotted 26 | . 22 4 Peak Tracking Total 6 | . 6 1 Tactical Retreats 2 | . 1 1 Traps | -11 -10 -10 ------- Run | Yrd Mat Sub Traps Triggered 4 | . 3 1 Indirectly . | . . . Trap Hack Attempts . | . . . Triggered . | . . . Disarmed . | . . . Reprogrammed . | . . . Reused . | . . . Traps Extracted . | . . . Installed . | . . . Triggered . | . . . Machines | -11 -10 -10 ---------- Run | Yrd Mat Sub Machines Disabled . | . . . Max in Single Turn . | . . . Machines Repaired . | . . . Machines Dismantled . | . . . Machines Sabotaged . | . . . Overloaded Fab Kills . | . . . Hacking | -11 -10 -10 --------- Run | Yrd Mat Sub Machines Accessed 7 | . 5 2 Terminals 3 | . 3 . Fabricators . | . . . Repair Stations 1 | . 1 . Recycling Units 1 | . 1 . Scanalyzers . | . . . Garrison Access . | . . . Total Hacks 17 | . 14 3 Successful 7 | . 4 3 Failed 10 | . 10 . Catastrophic 1 | . 1 . Database Lockouts . | . . . Manual . | . . . Terminals 9 | . 9 . Fabricators . | . . . Repair Stations 2 | . 2 . Recycling Units 3 | . 3 . Scanalyzers . | . . . Garrison Access . | . . . Terminal Hacks 5 | . 2 3 Record 1 | . . 1 Robot Analysis 2 | . 2 . Open Door 1 | . . 1 Release Object 1 | . . 1 Fabricator Hacks . | . . . Repair Station Hacks 2 | . 2 . Scan Component 1 | . 1 . Repair 1 | . 1 . Recycling Unit Hacks . | . . . Scanalyzer . | . . . Garrison Access Hacks . | . . . Unauthorized Hacks . | . . . Terminals . | . . . Fabricators . | . . . Repair Stations . | . . . Recycling Units . | . . . Scanalyzers . | . . . Garrison Access . | . . . Data Cores Recovered . | . . . Used . | . . . Hacking Detections 5 | . 5 . Full Trace Events . | . . . Feedback Events . | . . . Feedback Blocked . | . . . Robot Schematics Acquired . | . . . Robots Built . | . . . Authchips . | . . . Time . | . . . Total Robot Build Rating . | . . . Part Schematics Acquired . | . . . Parts Built . | . . . Authchips . | . . . Time . | . . . Total Part Build Rating . | . . . Part Studies Acquired . | . . . Parts Repaired 1 | . 1 . Time 26 | . 26 . Parts Recycled . | . . . Recycled Matter . | . . . Retrieved Matter . | . . . Retrieved Components . | . . . Parts Scanalyzed . | . . . Part Schematics Acquired . | . . . Parts Damaged . | . . . Bothacking | -11 -10 -10 ------------ Run | Yrd Mat Sub Used RIF Installer . | . . . Robots Hacked . | . . . Non-combat . | . . . Combat . | . . . Robot Hacks Applied . | . . . Relay Couplers Released . | . . . Fabnet Peak Effective % . | . . . Robots Rewired . | . . . Allies Hacked . | . . . Hacks Repelled . | . . . Allies | -11 -10 -10 -------- Run | Yrd Mat Sub Total Allies . | . . . Largest Group . | . . . Highest-Rated Group . | . . . Highest-Rated Ally . | . . . Total Orders . | . . . Ally Attacks . | . . . Total Damage . | . . . Kills . | . . . Allies Corrupted . | . . . Allies Melted . | . . . Intel | -11 -10 -10 ------- Run | Yrd Mat Sub Active Infowar (turns) 1716 | 35 638 1043 Seismic 1716 | 35 638 1043 Robot Analysis Total 2 | . 2 . Derelict Logs Recovered 1 | . . 1 Drone Launches . | . . . Drone Recoveries . | . . . Exploration | -11 -10 -10 ------------- Run | Yrd Mat Sub Turns Passed 1953 | 272 638 1043 Spaces Moved 1058 | 139 351 568 Core 9 | 9 . . Treads 170 | 130 40 . Legs . | . . . Wheels 879 | . 311 568 Hover . | . . . Flight . | . . . Fastest Speed 50 | 50 90 90 Average Speed 106 | 152 98 99 Slowest Speed 160 | 160 160 105 Overloaded Moves . | . . . Propulsion Burnouts . | . . . Robots Hopped . | . . . Potential Cave-ins 2 | . . 2 Cave-ins Triggered . | . . . Exploration Rate (%) 28 | 7 62 17 Regions Visited 2 Branch Regions 1 Pre-discovered Areas . | . . . Known Exits Taken . | . . . Unknown Exits Taken 2 | 1 1 . Scrap Searched 3 | . . 3 Spaces Dug 6 | . 1 5 Terrain Destroyed 6 | . 1 5 Melee . | . . . Projectile 6 | . 1 5 AOE . | . . . Terrain Rammed . | . . . Walls Destroyed . | . . . Machines Disabled . | . . . Actions | -11 -10 -10 --------- Run | Yrd Mat Sub Total 1699 | 166 565 968 Wait 490 | . 154 336 Move 1056 | 138 350 568 Hop . | . . . Pick Up 17 | 2 9 6 Fast Attach 8 | 7 1 . Attach 2 | 1 . 1 Detach 1 | 1 . . Swap 18 | 1 7 10 Drop 13 | . 5 8 Fire 93 | 16 39 38 Melee . | . . . Ram . | . . . Kick . | . . . Crush . | . . . Escape Stasis . | . . . Rewire . | . . . Trap . | . . . Miscellaneous 1 | . . 1 Route ------- -11/Scrapyard -10/Materials (discovered 3 exits: [*Mat x2] / *Sub) -10/Subcaves History --------- Turn | Location | Event 4 | -11/Scrapyard | Discovered new exit (range 16) 273 | -11/Scrapyard | Entered Materials 312 | -10/Materials | Build established: Mutant 438 | -10/Materials | Repaired Mining Laser 466 | -10/Materials | Discovered new exit (range 13) 809 | -10/Materials | Discovered new exit (range 16) 897 | -10/Materials | Discovered new exit (range 7) 911 | -10/Materials | Entered Subcaves 912 | -10/Subcaves | Approached by a straggling Scientist 936 | -10/Subcaves | Disturbed a concealed Subdweller 944 | -10/Subcaves | Core integrity fell below 50% 1044 | -10/Subcaves | Learned 2 Materials zone layouts 1052 | -10/Subcaves | Released subatomizers from SUBCON Basin 1156 | -10/Subcaves | Core integrity fell below 20% 1356 | -10/Subcaves | Shifting Twisted Machinery released Sub. Beam Cannon 1954 | -10/Subcaves | Destroyed by Piercing Trap Last Messages --------------- 01393_ Acquired 10 matter. B8-RN5(c): "I think it's somewhere east of here" 01523_ Sub. Monowheel shoots sparks and powers down. 01526_ Dropped Broken Sub. Monowheel. 01529_ Sub. Power Source shoots sparks and powers down. 01563_ 2A-A6G(O) cries out in pain. 01563_ 2A-A6G(O) destroyed. 01571_ Acquired 35 matter. 01573_ Acquired Slug Cannon. 01586_ Dropped Shotgun. 01591_ Acquired Barrage Gun. 01689_ Subatomizers dissect the Sub. Optics, destroying it. 01929_ Slug penetrates Wall. 01954_ Triggered Piercing Trap. 01954_ Spikes shoot up from the floor. 01954_ Critical hit (Impale). Map ----- +----------------------------------------------------+ | ??????????????????????????????????# "#???????? | | ??????????????????????????????????#" """"#???????? | | ??????????????????????????????????## #####???????? | | ??????????????????????????????????#" ""#?????????? | | ??????????????????????????????????#X ##????????? | | ?????????????????????????????????### ##???????? | | ?????????????????????????????????# #### #???????? | | ?######??????????????????????????# ## [####?????? | | ?# ####################???????# ### ##????? | | ## # ## ## ######### ##???? | | ## " """ ### # | | """""" ] | | # ##"""""# ## # ## # ### # # | | ### ## "" ########### ##??????? | | ## ### ###""" # &##????????# #???????? | | ?### ###"""#### !#????##### ########?? | | ???## # #"""#?# ##???## # #####"[!%#?? | | ????## """#?# #??## #??#&% "##?? | | ?????# " #?## #??# #??#%####??? | | ?????# ### ### #"#"#?# ##??## ### #####=&& #?? | | ?????####?###?#####???# #?## ### ##&##&## | | ?????????????????????## ### ### #" " | | ????????????????????##^^""## #### | | ????????????????????# ^# ## ### | | ????????????????????## ^##### #### ### | | ?????????????????????##^^@;#### ## ## #?? | | ??????????????????????## ^ ## ### ##?? | | ???????????????????????##^ ### ##??#####??? | | ????????????????????????######?########??????????? | | ?????????????????????????????????????????????????? | | ?????????????????????????????????????????????????? | | ?????????????????????????????????????????????????? | | ?????????????????????????????????????????????????? | | ?????????????????????????????????????????????????? | | ?????????????????????????????????????????????????? | | ?????????????????????????????????????????????????? | | ?????????????????????????????????????????????????? | | ?????????????????????????????????????????????????? | | ?????????????????????????????????????????????????? | | ?????????????????????????????????????????????????? | | ?????????????????????????????????????????????????? | | ?????????????????????????????????????????????????? | | ?????????????????????????????????????????????????? | | ?????????????????????????????????????????????????? | | ?????????????????????????????????????????????????? | | ?????????????????????????????????????????????????? | | ?????????????????????????????????????????????????? | | ?????????????????????????????????????????????????? | | ?????????????????????????????????????????????????? | | ?????????????????????????????????????????????????? | +----------------------------------------------------+ Best States ------------- Heat Dissipation 25 Energy Generation 15 Energy Capacity 250 Matter Stores 300 Matter Capacity 300 Sight Range 16 Terrain Scan Density 10 Evasion (%) 42 Recoil Reduction 2 Item Schematics ----------------- None Robot Schematics ------------------ None Fabricated ------------ Nothing Repaired ---------- Mining Laser | 13% | -10/Materials Studied --------- None Alien Tech Used ----------------- None Achievements -------------- None Challenges ------------ None Game ------ Seed SensorMicroThermoblaster Manual? 0 Play Time 00:16:36 Cumulative 45.2 hours Start 2025.12.21 @ 20:58:43 End 2025.12.21 @ 21:16:15 Sessions 1 Manual Loads 0 Difficulty Rogue Special Mode None Game No. 41 Rogue 39 Adventurer 2 Explorer 0 Win Type - Total 1 Types 0/0/0/1/0/0/0/0/0/0 Lore% 31 Gallery% 51 Achievement% 43 Wizard Run 0 Options --------- Layout 2 ASCII 0 Keyboard 1 Movement Numpad Keybinds 0 Fullscreen 1 Font 32/SmallcapsGlow Map View 50x49 Zoom Use 0% Tactical HUD 1 Map Filters NONE Filters NONE Steam 0 RUN: 38396dff-5578-4401-b72d-898b99703925